fUST/lending_fUST_20250821
["ID","MTS","AMOUNT","RATE_DAILY","PERIOD"]
[380449179,1755773869721,-150.82192594,0.0002099,2]
[380449180,1755773869744,-14.20411006,0.0002099,2]
[380449181,1755773873272,-189.07319312,0.0002099,2]
[380449182,1755773876897,-96.72269682,0.0002099,2]
[380449183,1755773876920,-195.43037143,0.00020991,2]
[380449184,1755773899383,-227.81384896,0.00020552,2]
[380449185,1755773902305,-75.85820744,0.00020552,2]
[380449186,1755773902331,-124.58461318,0.00020991,2]
[380449187,1755773905787,-172.74858224,0.00020991,2]
[380449188,1755773908034,-235.57658172,0.00020991,2]
[380449189,1755773910180,-236.02249694,0.00020991,2]
[380449190,1755773911944,-176.43113628,0.00020991,2]
[380449191,1755773915670,-23.41249281,0.00020991,2]
[380449192,1755773915695,-215.86710461,0.00020991,2]
[380449193,1755773915718,-54.5309859,0.00020991,2]
[380449194,1755773919252,-301.99024899,0.00021041,2]
[380449195,1755773921651,-92.75451053,0.00021041,2]
[380449196,1755773921675,-157.63820768,0.00021151,2]
[380449197,1755773926004,-237.10655184,0.00021151,2]
[380449198,1755773926025,-26.43970233,0.00021233,2]
[380449199,1755773927609,-179.3206256,0.00021233,2]
[380449200,1755773929511,-188.98443159,0.00021233,2]
[380449201,1755773929531,-3.95556841,0.00021342,2]
[380449202,1755773931748,-236.30685722,0.00021342,2]
[380449203,1755773933382,-154.48233389,0.00021342,2]
[380449204,1755773933406,-52.43283877,0.00021452,2]
[380449205,1755773936552,-157.94036673,0.00021452,2]
[380449206,1755773939011,-184.37155402,0.00021452,2]
[380449207,1755773939035,-15.62844598,0.00021525,2]
[380449208,1755773947735,-243.53140872,0.00021525,2]
[380449209,1755773947757,-1.08176126,0.00021534,2]
[380449210,1755773949546,-243.53140872,0.00021534,2]
[380449211,1755773952397,-180.18728878,0.00021147,2]
[380449212,1755773954866,-36.76543283,0.00021147,2]
[380449213,1755773954888,-150.13158954,0.00021534,2]
[380449214,1755773954910,-125.82983352,0.00021553,2]
[380449215,1755773957572,-54.6882878,0.00021553,2]
[380449216,1755773959976,-249.11963327,0.00020735,2]
[380449217,1755773961666,-184.49605003,0.00020735,2]
[380449218,1755773963214,-165.35138601,0.00020735,2]
[380449219,1755773964829,-262.07965781,0.00020735,2]
[380449221,1755773987215,-191.88637684,0.00020735,2]
[380449222,1755773990275,-256.67431204,0.00020735,2]
[380449223,1755773995109,-399.69533239,0.00020735,2]
[380449224,1755773997911,-245.20131817,0.00020735,2]
[380449225,1755774000408,-205.01747555,0.00020735,2]
[380449226,1755774003309,-424.06373269,0.00020735,2]
[380449227,1755774005406,-197.82070235,0.00020735,2]
[380449228,1755774007673,-440.7242219,0.00020735,2]
[380449229,1755774010198,-242.27305288,0.00020735,2]
[380449230,1755774012068,-171.73971442,0.00020735,2]
[380449231,1755774015243,-409.29752281,0.00020735,2]
[380449232,1755774018534,-168.44844187,0.00020735,2]
[380449233,1755774018555,-251.03118481,0.00020735,2]
[380449234,1755774022229,-248.91952183,0.00020735,2]
[380449236,1755774046355,-165.15673432,0.000199,2]
[380449237,1755774048630,-301.17768748,0.000199,2]
[380449238,1755774052148,-196.35975385,0.000199,2]
[380449239,1755774052169,-150.63269627,0.00020635,2]
[380449240,1755774054435,-54.97483433,0.00020635,2]
[380449241,1755774054457,-144.80865948,0.00020635,2]
[380449242,1755774054969,1800.0,0.00019121,2]
[380449243,1755774058964,-245.21620298,0.00020635,2]
[380449244,1755774060667,-263.12597451,0.00020217,2]
[380449245,1755774064916,-301.67503566,0.00020217,2]
[380449246,1755774068012,-233.45298345,0.00020217,2]
[380449247,1755774070808,-176.80344377,0.00020217,2]
[380449248,1755774074493,-269.68314828,0.00020217,2]
[380449249,1755774078375,-480.0,0.00020217,2]
[380449250,1755774080710,-75.25941433,0.00020217,2]
[380449251,1755774080733,-211.20282395,0.00020635,2]
[380449253,1755774083741,-235.0189566,0.00020635,2]
[380449254,1755774086224,-254.82170582,0.00020635,2]
[380449255,1755774088874,-347.43249248,0.00020635,2]
[380449256,1755774091763,-151.15445482,0.00020635,2]
[380449257,1755774094704,-154.71658238,0.00020635,2]
[380449258,1755774096329,-280.65913737,0.00020635,2]
[380449259,1755774100033,-139.76872862,0.00020635,2]
[380449260,1755774100055,-26.16643829,0.00020635,2]
[380449262,1755774102213,-160.34831302,0.00020635,2]
[380449263,1755774102236,-139.65168698,0.00020702,2]
[380449264,1755774105655,-190.52140825,0.00020702,2]
[380449265,1755774107884,-259.61356107,0.00020702,2]
[380449266,1755774107909,-0.04929336,0.00020735,2]
[380449267,1755774107931,-17.2979106,0.00020735,2]
[380449268,1755774110102,-314.07953963,0.00020735,2]
[380449269,1755774112436,-168.62254977,0.00020735,2]
[380449270,1755774112462,-11.06058101,0.00020735,2]
[380449271,1755774115935,-189.11701146,0.00020735,2]
[380449272,1755774118731,-179.21873753,0.00020735,2]
[380449273,1755774121343,-120.60367,0.00020735,2]
[380449274,1755774121366,-160.90880247,0.00020835,2]
[380449275,1755774123910,-241.56188835,0.00020835,2]
[380449276,1755774125520,-260.22348481,0.00020835,2]
[380449277,1755774125543,-178.26957061,0.00020946,2]
[380449278,1755774125565,-97.81396468,0.0002103,2]
[380449279,1755774128600,-213.7163675,0.0002103,2]
[380449280,1755774128625,-7.89419574,0.00021046,2]
[380449281,1755774130065,-175.10580426,0.00021046,2]
[380449282,1755774130090,-12.12120311,0.0002114,2]
[380449283,1755774131763,-260.83522596,0.00020846,2]
[380449284,1755774135254,-280.23468969,0.00020846,2]
[380449285,1755774136272,1500.0,0.000273,120]
[380449286,1755774168692,1574.0,0.000273,120]
[380449287,1755774177446,1500.0,0.000273,120]
[380449295,1755774571891,-246.90959975,0.000199,2]
[380449298,1755774574838,-225.50035122,0.000199,2]
[380449299,1755774577743,-146.10461299,0.000199,2]
[380449300,1755774577764,-5.00668137,0.00020039,2]
[380449301,1755774580035,-156.19886906,0.00019939,2]
[380449302,1755774580057,-95.4041074,0.00020039,2]
[380449303,1755774582367,-165.67488487,0.00020039,2]
[380449304,1755774582390,-39.0325561,0.00020394,2]
[380449305,1755774582493,448.19,0.00027397,120]
[380449306,1755774586385,-128.9674439,0.00020394,2]
[380449307,1755774586407,-50.16823272,0.00020439,2]
[380449308,1755774589028,1000.28345835,0.00027397,120]
[380449309,1755774598824,1000.0,0.00027397,120]
[380449310,1755774606419,1000.0,0.00027397,120]
[380449311,1755774613204,1000.0,0.00027397,120]
[380449312,1755774619815,1000.0,0.00027397,120]
[380449313,1755774625764,1000.0,0.00027397,120]
[380449314,1755774631189,1000.0,0.00027397,120]
[380449339,1755774631927,-168.0,0.00020531,2]
[380449340,1755774631938,-173.042823,0.00020539,2]
[380449341,1755774631948,-177.9081952,0.00020584,2]
[380449344,1755774631958,-178.26957061,0.00020592,2]
[380449346,1755774631968,-356.6462316,0.00020659,2]
[380449435,1755774636587,1000.0,0.00027397,120]
[380449448,1755774637938,-34.62686567,0.00020659,2]
[380449449,1755774637948,-436.26813433,0.00020681,2]
[380449451,1755774637995,-229.73186567,0.00020681,2]
[380449453,1755774638004,-168.0,0.00020692,2]
[380449454,1755774638014,-618.51456392,0.00020835,2]
[380449455,1755774638025,-850.0,0.00020877,2]
[380449456,1755774638034,-168.0,0.00021,2]
[380449457,1755774638044,-850.0,0.00021011,2]
[380449458,1755774638054,-300.0,0.00021171,2]
[380449459,1755774638063,-1200.0,0.00021171,2]
[380449460,1755774638072,-300.0,0.00021171,2]
[380449461,1755774638082,-300.0,0.00021171,2]
[380449463,1755774638091,-2471.36619341,0.00021172,2]
[380449464,1755774638100,-216.95272161,0.00021313,2]
[380449465,1755774638110,-243.6151752,0.00021318,2]
[380449466,1755774638119,-293.9988399,0.00021378,2]
[380449467,1755774638128,-394.74475952,0.00021644,2]
[380449468,1755774638137,-1200.0,0.0002165,2]
[380449469,1755774638147,-160.0,0.00021652,2]
[380449470,1755774638156,-232.28399145,0.00021652,2]
[380449471,1755774638165,-215.86710461,0.00021652,2]
[380449472,1755774638175,-150.8194722,0.00021653,2]
[380449473,1755774638184,-882.90511082,0.00021653,2]
[380449474,1755774638193,-151.0,0.00021704,2]
[380449475,1755774638202,-288.06,0.00021707,10]
[380449476,1755774638211,-240.05,0.00021707,10]
[380449477,1755774638221,-200.05,0.00021707,10]
[380449478,1755774638230,-4000.0,0.00021714,2]
[380449479,1755774638239,-500.0,0.00021716,2]
[380449480,1755774638249,-500.0,0.00021716,2]
[380449481,1755774638258,-604.9815175,0.00021716,2]
[380449482,1755774638267,-417.04298416,0.00021716,2]
[380449483,1755774638277,-198.66499897,0.00021716,2]
[380449484,1755774638286,-364.63028256,0.00021716,2]
[380449485,1755774638296,-309.83358109,0.00021716,2]
[380449486,1755774638305,-190.93571439,0.00021716,2]
[380449487,1755774638314,-371.39221438,0.00021716,2]
[380449488,1755774638323,-190.16641891,0.00021716,2]
[380449489,1755774638334,-371.86484588,0.00021716,2]
[380449490,1755774638343,-313.19840054,0.00021716,2]
[380449491,1755774638353,-333.45958424,0.00021716,2]
[380449492,1755774638363,-500.0,0.00021716,2]
[380449493,1755774638372,-7993.0220758,0.00021717,2]
[380449494,1755774638384,-500.79876873,0.00021717,2]
[380449495,1755774638398,-1094.41,0.00021717,2]
[380449496,1755774638422,-6017.15361763,0.00021717,2]
[380449497,1755774638433,-14237.90927889,0.00021717,2]
[380449498,1755774638444,-5641.79842951,0.00021717,2]
[380449505,1755774641260,-3627.92309,0.00020114,7]
[380449506,1755774641269,-136353.51562509,0.00021717,2]
[380449558,1755774646140,-216.95272161,0.00021313,2]
[380449559,1755774646149,-489.37398142,0.00021717,2]
[380449560,1755774646183,1000.0,0.00027397,120]
[380449561,1755774646208,-383.49340965,0.00021717,2]
[380449572,1755774700163,1000.0,0.00027397,120]
[380449574,1755774705412,1000.0,0.00027397,120]
[380449576,1755774711125,1000.0,0.00027397,120]
[380449577,1755774711773,-322.0739734,0.000199,2]
[380449578,1755774714431,-177.9260266,0.000199,2]
[380449579,1755774716616,1000.0,0.00027397,120]
[380449581,1755774722434,1000.0,0.00027397,120]
[380449584,1755774728587,1000.0,0.00027397,120]
[380449585,1755774733961,1000.0,0.00027397,120]
[380449586,1755774738407,-104.73423308,0.000199,2]
[380449587,1755774738440,-48.5709065,0.00020835,2]
[380449588,1755774740478,-300.0,0.00020835,2]
[380449589,1755774743654,1000.0,0.00027397,120]
[380449590,1755774749317,1000.0,0.00027397,120]
[380449591,1755774750536,-256.16332644,0.00020835,2]
[380449592,1755774755970,1000.0,0.00027397,120]
[380449593,1755774764522,1000.0,0.00027397,120]
[380449594,1755774771056,1000.0,0.00027342,120]
[380449595,1755774784259,1000.0,0.00027397,120]
[380449596,1755774789307,1000.0,0.00027397,120]
[380449597,1755774795002,1000.0,0.00027397,120]
[380449598,1755774801195,1000.0,0.00027397,120]
[380449599,1755774811129,777.88902335,0.00027397,120]
[380449602,1755774873655,-172.10771669,0.000199,2]
[380449603,1755774876483,-151.97667363,0.000199,2]
[380449604,1755774878951,-240.33422711,0.000199,2]
[380449605,1755774878974,-24.70896712,0.00020835,2]
[380449606,1755774882118,-165.02603602,0.00020835,2]
[380449607,1755774885460,-306.18744044,0.00020835,2]
[380449608,1755774888956,-68.49617383,0.00020835,2]
[380449609,1755774924560,-238.11524171,0.000208,2]
[380449610,1755774928598,-173.48406566,0.000208,2]
[380449611,1755774932712,-390.76187952,0.000208,2]
[380449612,1755774936736,-175.20309254,0.000208,2]
[380449613,1755774939502,-186.63622741,0.000208,2]
[380449614,1755774941070,-158.2640484,0.000208,2]
[380449615,1755774943880,-183.69598906,0.000208,2]
[380449616,1755774946068,-378.21735335,0.000208,2]
[380449618,1755774948218,-298.39990921,0.000208,2]
[380449619,1755774951032,-296.2387423,0.000208,2]
[380449620,1755774952554,-220.45272252,0.000208,2]
[380449621,1755774954813,-184.15005139,0.000208,2]
[380449622,1755774957811,-116.38067693,0.000208,2]
[380449623,1755774957840,-125.05186345,0.000208,2]
[380449624,1755774965203,-300.0,0.00020799,2]
[380449625,1755774965228,-22.58398661,0.000208,2]
[380449626,1755774968712,-155.939263,0.000208,2]
[380449627,1755774971040,-219.8332506,0.000208,2]
[380449628,1755774973878,-479.69262674,0.000208,2]
[380449629,1755774977913,-281.36834773,0.000208,2]
[380449630,1755774980177,-251.92939213,0.000208,2]
[380449631,1755774983612,-191.14157386,0.000208,2]
[380449632,1755774986545,-162.99887136,0.000208,2]
[380449633,1755774989929,-300.0,0.000208,2]
[380449634,1755774992991,-181.08103901,0.000208,2]
[380449637,1755775187708,161.791715,0.00013699,2]
[380449639,1755775522932,532.94,0.00027397,120]
[380449643,1755775641149,-476.03312922,0.000199,2]
[380449649,1755775653319,-50.75758044,0.000199,2]
[380449650,1755775653341,-173.042823,0.00020386,2]
[380449651,1755775653364,-666.0,0.00020483,2]
[380449652,1755775653386,-1023.0,0.00020798,2]
[380449653,1755775653409,-1200.0,0.00020799,2]
[380449654,1755775653432,-300.0,0.00020799,2]
[380449655,1755775653454,-628.37978551,0.000208,2]
[380449656,1755775653475,-3000.0,0.000208,2]
[380449657,1755775653495,-389.17032564,0.000208,2]
[380449658,1755775653519,-526.79070958,0.00020835,2]
[380449659,1755775653542,-2463.21386062,0.00021127,2]
[380449660,1755775817026,836.0,0.00027397,120]
[380449679,1755775832262,-491.67132898,0.000199,2]
[380449680,1755775832271,-300.0,0.00019999,2]
[380449682,1755775832281,-11572.65709707,0.0002,2]
[380449688,1755775832431,-1157.81723164,0.0002,2]
[380449689,1755775832443,-324.24879281,0.0002,2]
[380449690,1755775832465,-2631.09222333,0.0002,2]
[380449691,1755775832479,-8341.56096739,0.0002,2]
[380449692,1755775832487,-518.3471852,0.00020614,2]
[380449693,1755775832497,-491.67132894,0.00020835,2]
[380449694,1755775832506,-215.86710461,0.00021127,2]
[380449695,1755775832515,-199.0,0.00021607,10]
[380449696,1755775832524,-151.97667363,0.00021607,2]
[380449697,1755775832534,-160.0,0.00021615,2]
[380449698,1755775832543,-500.0,0.00021616,2]
[380449699,1755775832552,-30737.21767889,0.00021617,2]
[380449700,1755775832561,-442.3399922,0.0002164,2]
[380449701,1755775832572,-177.9081953,0.0002164,2]
[380449702,1755775832582,-151.0,0.00021651,2]
[380449703,1755775832591,-437.45899009,0.00021651,2]
[380449704,1755775832600,-2263.16804245,0.00021651,2]
[380449705,1755775832609,-500.0,0.00021663,2]
[380449706,1755775832618,-500.0,0.00021663,2]
[380449707,1755775832630,-500.0,0.00021663,2]
[380449708,1755775832639,-500.0,0.00021663,2]
[380449709,1755775832648,-500.0,0.00021663,2]
[380449710,1755775832658,-500.0,0.00021663,2]
[380449711,1755775832669,-500.0,0.00021663,2]
[380449712,1755775832678,-190.93571439,0.00021663,2]
[380449713,1755775832687,-500.0,0.00021663,2]
[380449714,1755775832697,-500.0,0.00021663,2]
[380449715,1755775832707,-500.0,0.00021663,2]
[380449716,1755775832716,-500.0,0.00021663,2]
[380449717,1755775832726,-500.0,0.00021663,2]
[380449718,1755775832735,-500.0,0.00021663,2]
[380449719,1755775832745,-617.80036026,0.00021663,2]
[380449720,1755775832754,-486.9361398,0.00021663,2]
[380449721,1755775832764,-500.0,0.00021663,2]
[380449722,1755775832773,-500.0,0.00021663,2]
[380449723,1755775832782,-216.12377582,0.00021663,2]
[380449724,1755775832792,-500.0,0.00021663,2]
[380449725,1755775832802,-500.0,0.00021663,2]
[380449726,1755775832811,-395.46045733,0.00021663,2]
[380449727,1755775832823,-500.0,0.00021663,2]
[380449728,1755775832833,-500.0,0.00021663,2]
[380449729,1755775832842,-500.0,0.00021663,2]
[380449730,1755775832852,-381.03806973,0.00021664,2]
[380449731,1755775832861,-3469.62780263,0.00021664,2]
[380449739,1755775838158,-199.0,0.00021507,10]
[380449740,1755775838168,-500.0,0.00021663,2]
[380449741,1755775838177,-449.80063099,0.00021663,2]
[380449742,1755775838216,-50.19936901,0.00021663,2]
[380449743,1755775838226,-500.0,0.00021663,2]
[380449744,1755775838236,-500.0,0.00021663,2]
[380449745,1755775838245,-500.0,0.00021663,2]
[380449746,1755775838255,-500.0,0.00021663,2]
[380449747,1755775838265,-500.0,0.00021663,2]
[380449748,1755775838274,-34593.57547781,0.00021664,2]
[380449749,1755775838286,-664.90597645,0.00021664,2]
[380449750,1755775838298,-1110.91819394,0.00021664,2]
[380449751,1755775838309,-2142.98129131,0.00021664,2]
[380449752,1755775838319,-177.9746743,0.00021713,2]
[380449754,1755775838331,-54.30931715,0.00021713,2]
[380449755,1755775838340,-216.95272161,0.00021713,2]
[380449756,1755775838350,-323.72201018,0.00021753,2]
[380449758,1755775838361,-71.02274934,0.00021753,2]
[380449760,1755775838370,-420.0,0.00021777,2]
[380449762,1755775838380,-70.82503845,0.00021817,2]
[380449764,1755775838393,-929.17496155,0.00021817,2]
[380449766,1755775838403,-107.66178555,0.00021817,2]
[380449769,1755775838414,-441.2363975,0.00021817,2]
[380449772,1755775838433,-309.05002689,0.00021817,2]
[380449773,1755775838444,-1618.84967899,0.00021817,2]
[380449774,1755775838455,-394.74475952,0.00021836,2]
[380449775,1755775838465,-1700.0,0.00021844,2]
[380449776,1755775838475,-159.73,0.00021853,2]
[380449777,1755775838485,-150.0,0.00021853,2]
[380449778,1755775838495,-2699.283,0.00021861,2]
[380449779,1755775838504,-215.539,0.00021861,2]
[380449780,1755775838514,-500.0,0.00021876,2]
[380449781,1755775838524,-152.37448875,0.00021877,2]
[380449782,1755775838536,-820.62551125,0.00021877,2]
[380449783,1755775838545,-637.0,0.00021877,2]
[380449784,1755775838555,-2154.0,0.00021877,2]
[380449785,1755775838565,-408.0,0.00021877,2]
[380449786,1755775838575,-4000.0,0.00021899,2]
[380449787,1755775838585,-500.0,0.00021916,2]
[380449788,1755775838594,-500.0,0.00021916,2]
[380449789,1755775838603,-500.0,0.00021916,2]
[380449790,1755775838613,-500.0,0.00021916,2]
[380449791,1755775838625,-292.47220229,0.00021916,2]
[380449792,1755775838634,-500.0,0.00021916,2]
[380449793,1755775838644,-500.0,0.00021916,2]
[380449794,1755775838653,-500.0,0.00021916,2]
[380449795,1755775838663,-500.0,0.00021916,2]
[380449796,1755775838672,-500.0,0.00021916,2]
[380449797,1755775838682,-334.02411972,0.00021916,2]
[380449811,1755775840146,-165.97588028,0.00021916,2]
[380449812,1755775840155,-126.88946922,0.00021916,2]
[380449813,1755775840166,-373.11053078,0.00021916,2]
[380449814,1755775840176,-362.68827307,0.00021916,2]
[380449815,1755775840185,-500.0,0.00021916,2]
[380449816,1755775840194,-500.0,0.00021916,2]
[380449817,1755775840204,-133.18341041,0.00021916,2]
[380449818,1755775840215,-366.81658959,0.00021916,2]
[380449819,1755775840224,-500.0,0.00021916,2]
[380449820,1755775840234,-500.0,0.00021916,2]
[380449821,1755775840244,-500.0,0.00021916,2]
[380449822,1755775840254,-500.0,0.00021916,2]
[380449823,1755775840263,-500.0,0.00021916,2]
[380449824,1755775840273,-650.0,0.00021916,2]
[380449826,1755775840282,-500.0,0.00021916,2]
[380449828,1755775840291,-500.0,0.00021916,2]
[380449830,1755775840301,-391.90193997,0.00021917,2]
[380449832,1755775840311,-500.0,0.00021917,2]
[380449833,1755775840321,-405.8079313,0.00021917,3]
[380449834,1755775840330,-480.0,0.00021917,3]
[380449836,1755775840339,-480.0,0.00021917,3]
[380449838,1755775840348,-480.0,0.00021917,3]
[380449839,1755775840358,-440.69476932,0.00021917,3]
[380449840,1755775840367,-480.0,0.00021917,3]
[380449841,1755775840376,-926.28,0.00021917,3]
[380449842,1755775840386,-480.0,0.00021917,3]
[380449843,1755775840396,-480.0,0.00021917,3]
[380449844,1755775840405,-480.0,0.00021917,3]
[380449845,1755775840415,-480.0,0.00021917,3]
[380449846,1755775840424,-480.0,0.00021917,3]
[380449847,1755775840433,-480.0,0.00021917,3]
[380449848,1755775840442,-480.0,0.00021917,3]
[380449849,1755775840452,-480.0,0.00021917,3]
[380449850,1755775840462,-444.21800627,0.00021917,3]
[380449851,1755775840470,-480.0,0.00021917,3]
[380449852,1755775840480,-480.0,0.00021917,3]
[380449853,1755775840489,-480.0,0.00021917,3]
[380449854,1755775840499,-480.0,0.00021917,3]
[380449855,1755775840508,-480.0,0.00021917,3]
[380449856,1755775840517,-480.0,0.00021917,3]
[380449857,1755775840527,-480.0,0.00021917,3]
[380449858,1755775840536,-928.97,0.00021917,3]
[380449859,1755775840546,-1192.08,0.00021917,3]
[380449860,1755775840556,-1116.63,0.00021917,3]
[380449861,1755775840566,-480.0,0.00021917,3]
[380449862,1755775840576,-480.0,0.00021917,3]
[380449863,1755775840585,-480.0,0.00021917,3]
[380449864,1755775840595,-480.0,0.00021917,3]
[380449865,1755775840604,-480.0,0.00021917,3]
[380449866,1755775840614,-546.49755323,0.00021917,3]
[380449867,1755775840626,-480.0,0.00021917,3]
[380449868,1755775840635,-480.0,0.00021917,3]
[380449869,1755775840645,-480.0,0.00021917,3]
[380449870,1755775840654,-480.0,0.00021917,3]
[380449871,1755775840663,-445.18454932,0.00021917,3]
[380449872,1755775840672,-480.0,0.00021917,3]
[380449873,1755775840682,-480.0,0.00021917,3]
[380449874,1755775840693,-460.82308239,0.00021917,3]
[380449875,1755775840703,-480.0,0.00021917,3]
[380449876,1755775840712,-480.0,0.00021917,3]
[380449877,1755775840721,-675.76,0.00021917,3]
[380449878,1755775840731,-199.71109605,0.00021917,3]
[380449879,1755775840741,-480.0,0.00021917,3]
[380449880,1755775840750,-480.0,0.00021917,3]
[380449881,1755775840759,-480.0,0.00021917,3]
[380449882,1755775840770,-480.0,0.00021917,3]
[380449883,1755775840779,-480.0,0.00021917,3]
[380449884,1755775840789,-354.63562191,0.00021917,3]
[380449885,1755775840799,-480.0,0.00021917,3]
[380449886,1755775840808,-480.0,0.00021917,3]
[380449887,1755775840818,-480.0,0.00021917,3]
[380449888,1755775840827,-806.48,0.00021917,3]
[380449889,1755775840836,-480.0,0.00021917,3]
[380449890,1755775840845,-480.0,0.00021917,3]
[380449891,1755775840854,-480.0,0.00021917,3]
[380449892,1755775840863,-595.63,0.00021917,3]
[380449893,1755775840872,-480.0,0.00021917,3]
[380449894,1755775840881,-480.0,0.00021917,3]
[380449895,1755775840890,-644.56,0.00021917,3]
[380449896,1755775840899,-480.0,0.00021917,3]
[380449897,1755775840908,-409.10970363,0.00021917,3]
[380449898,1755775840917,-363.82551664,0.00021917,3]
[380449899,1755775840927,-480.0,0.00021917,3]
[380449900,1755775840938,-480.0,0.00021917,3]
[380449901,1755775840947,-480.0,0.00021917,3]
[380449902,1755775840958,-480.0,0.00021917,3]
[380449903,1755775840967,-480.0,0.00021917,3]
[380449904,1755775840976,-480.0,0.00021917,3]
[380449905,1755775840986,-480.0,0.00021917,3]
[380449906,1755775840996,-480.0,0.00021917,3]
[380449907,1755775841005,-480.0,0.00021917,3]
[380449908,1755775841016,-480.0,0.00021917,3]
[380449909,1755775841025,-480.0,0.00021917,3]
[380449910,1755775841036,-480.0,0.00021917,3]
[380449911,1755775841046,-480.0,0.00021917,3]
[380449912,1755775841056,-333.54726263,0.00021917,3]
[380449913,1755775841066,-480.0,0.00021917,3]
[380449914,1755775841077,-480.0,0.00021917,3]
[380449915,1755775841086,-480.0,0.00021917,3]
[380449916,1755775841096,-480.0,0.00021917,3]
[380449917,1755775841106,-343.51072519,0.00021917,3]
[380449918,1755775841115,-480.0,0.00021917,3]
[380449919,1755775841124,-516.62,0.00021917,3]
[380449920,1755775841134,-480.0,0.00021917,3]
[380449921,1755775841143,-541.75,0.00021917,3]
[380449922,1755775841153,-480.0,0.00021917,3]
[380449923,1755775841163,-480.0,0.00021917,3]
[380449924,1755775841173,-480.0,0.00021917,3]
[380449925,1755775841182,-1270.96,0.00021917,3]
[380449926,1755775841191,-480.0,0.00021917,3]
[380449927,1755775841201,-606.19269174,0.00021917,3]
[380449928,1755775841210,-480.0,0.00021917,3]
[380449929,1755775841219,-480.0,0.00021917,3]
[380449930,1755775841228,-480.0,0.00021917,3]
[380449931,1755775841237,-683.77,0.00021917,3]
[380449932,1755775841246,-544.38076643,0.00021917,3]
[380449933,1755775841254,-480.0,0.00021917,3]
[380449934,1755775841263,-480.0,0.00021917,3]
[380449935,1755775841272,-480.0,0.00021917,3]
[380449936,1755775841281,-480.0,0.00021917,3]
[380449937,1755775841290,-480.0,0.00021917,3]
[380449938,1755775841299,-480.0,0.00021917,3]
[380449939,1755775841307,-480.0,0.00021917,3]
[380449940,1755775841317,-668.12,0.00021917,3]
[380449941,1755775841326,-480.1,0.00021917,3]
[380449942,1755775841335,-896.05,0.00021917,3]
[380449943,1755775841344,-480.0,0.00021917,3]
[380449944,1755775841353,-480.0,0.00021917,3]
[380449945,1755775841362,-1687.97,0.00021917,3]
[380449946,1755775841371,-480.0,0.00021917,3]
[380449947,1755775841380,-463.73017042,0.00021917,3]
[380449948,1755775841389,-461.87626141,0.00021917,3]
[380449949,1755775841398,-480.0,0.00021917,3]
[380449950,1755775841406,-480.0,0.00021917,3]
[380449951,1755775841415,-543.38,0.00021917,3]
[380449952,1755775841424,-384.57688049,0.00021917,3]
[380449953,1755775841433,-511.88,0.00021917,3]
[380449954,1755775841442,-480.0,0.00021917,3]
[380449955,1755775841450,-681.69,0.00021917,3]
[380449956,1755775841460,-480.0,0.00021917,3]
[380449957,1755775841469,-305.46639071,0.00021917,3]
[380449958,1755775841477,-1204.79,0.00021917,3]
[380449959,1755775841486,-259.10817248,0.00021917,3]
[380449960,1755775841495,-151.44009,0.00021917,2]
[380449961,1755775841505,-480.0,0.00021917,3]
[380449962,1755775841513,-480.0,0.00021917,3]
[380449963,1755775841522,-481.92278612,0.00021917,3]
[380449964,1755775841531,-480.0,0.00021917,3]
[380449965,1755775841540,-480.0,0.00021917,3]
[380449966,1755775841549,-480.0,0.00021917,3]
[380449967,1755775841557,-685.49,0.00021917,3]